bitfinex-derivatives/quotes_BTCF0:USTF0_20251120
["timestamp","ask_amount","ask_price","bid_price","bid_amount"]
[1763609413660,0.03885803,92477.0,92476.0,0.1526665]
[1763609413954,0.02271,92483.0,92482.0,0.04443]
[1763609414150,0.02271,92483.0,92482.0,0.04662803]
[1763609414353,0.04777668,92483.0,92482.0,0.04662803]
[1763609414762,0.02271,92483.0,92482.0,0.04662803]
[1763609415555,0.04595,92483.0,92482.0,0.04662803]
[1763609416055,0.04495,92483.0,92482.0,0.04662803]
[1763609416355,0.04595,92483.0,92482.0,0.04662803]
[1763609416556,0.04795,92483.0,92482.0,0.04662803]
[1763609416751,0.04895,92483.0,92482.0,0.04662803]
[1763609417054,0.04895,92483.0,92482.0,0.15485753]
[1763609417055,0.004,92483.0,92482.0,0.15485753]
[1763609418246,0.3608,92490.0,92485.0,0.152656]
[1763609418448,0.3608,92490.0,92485.0,0.15485403]
[1763609419358,0.00227031,92486.0,92485.0,0.15485403]
[1763609419948,0.00427031,92486.0,92485.0,0.15485403]
[1763609420855,0.00227031,92486.0,92485.0,0.51565403]
[1763609421051,0.00200031,92486.0,92485.0,0.51565403]
[1763609421252,0.00016223,92492.0,92491.0,0.152649]
[1763609421458,0.00016223,92492.0,92491.0,0.25948703]
[1763609422258,0.37417,92511.0,92491.0,0.25948703]
[1763609422259,0.04495,92506.0,92505.0,0.04443]
[1763609422459,0.0699095,92506.0,92505.0,0.04662803]
[1763609424264,0.04495,92506.0,92505.0,0.04662803]
[1763609424458,0.04495,92506.0,92505.0,0.05362803]
[1763609424858,0.04495,92506.0,92505.0,0.04962803]
[1763609425058,0.04495,92506.0,92505.0,0.05362803]
[1763609425866,0.04495,92506.0,92505.0,0.16183063]
[1763609426060,0.04495,92506.0,92505.0,0.05362803]
[1763609427274,0.04495,92506.0,92505.0,0.16183063]
[1763609428671,0.1531514,92506.0,92505.0,0.05362803]
[1763609429060,0.1531514,92506.0,92505.0,0.007]
[1763609429266,0.17821205,92506.0,92505.0,0.007]
[1763609430966,0.1518819,92497.0,92496.0,0.00016223]
[1763609431170,0.53774255,92497.0,92496.0,0.00016223]
[1763609431670,0.04367,92497.0,92496.0,0.15394336]
[1763609431867,0.04367,92497.0,92496.0,0.04573026]
[1763609432172,0.04367,92497.0,92496.0,0.00016223]
[1763609432361,0.0687558,92497.0,92496.0,0.00416223]
[1763609433563,0.0687558,92497.0,92496.0,0.00616223]
[1763609433871,0.04419,92479.0,92478.0,0.4051]
[1763609434071,0.04419,92479.0,92478.0,0.36299803]
[1763609435073,0.04619,92479.0,92478.0,0.36299803]
[1763609435569,0.04819,92479.0,92478.0,0.36299803]
[1763609435872,0.07329647,92479.0,92478.0,0.3608]
[1763609436069,0.04419,92470.0,92469.0,0.36096223]
[1763609436982,0.1524335,92470.0,92469.0,0.36096223]
[1763609437370,0.1534335,92470.0,92469.0,0.36096223]
[1763609437571,0.1554335,92470.0,92469.0,0.36096223]
[1763609437869,0.1554335,92470.0,92469.0,0.00016223]
[1763609438076,0.18055882,92470.0,92469.0,0.00016223]
[1763609438979,0.07231532,92470.0,92469.0,0.02223223]
[1763609439666,0.07231532,92470.0,92469.0,0.00016223]
[1763609440669,0.07231532,92470.0,92469.0,0.15490496]
[1763609441180,0.18055882,92470.0,92469.0,0.04666026]
[1763609442680,0.02812532,92470.0,92469.0,0.04666026]
[1763609442975,0.003,92470.0,92469.0,0.04666026]
[1763609444283,0.00016223,92488.0,92487.0,0.0443]
[1763609444476,0.00016223,92488.0,92487.0,0.15472163]
[1763609444772,0.02168223,92488.0,92487.0,0.15472163]
[1763609444977,0.06950792,92488.0,92487.0,0.15472163]
[1763609445479,0.02531792,92488.0,92487.0,0.15472163]
[1763609445867,0.06950792,92488.0,92487.0,0.04649803]
[1763609446074,0.08217792,92488.0,92487.0,0.04649803]
[1763609446782,0.08617792,92488.0,92487.0,0.04649803]
[1763609448981,0.07350792,92488.0,92487.0,0.04649803]
[1763609449379,0.07150792,92488.0,92487.0,0.04649803]
[1763609449577,0.07350792,92488.0,92487.0,0.04649803]
[1763609450282,0.02731792,92488.0,92487.0,0.04649803]
[1763609450470,0.02931792,92488.0,92487.0,0.04649803]
[1763609451683,0.00416223,92488.0,92487.0,0.40729803]
[1763609452582,0.05686,92512.0,92511.0,0.0443]
[1763609452778,0.08201215,92512.0,92511.0,0.04649803]
[1763609453082,0.08201215,92512.0,92511.0,0.15469363]
[1763609453679,0.06934215,92512.0,92511.0,0.15469363]
[1763609453873,0.08201215,92512.0,92511.0,0.15669363]
[1763609454079,0.06934215,92512.0,92511.0,0.15669363]
[1763609454476,0.1650457,92520.0,92519.0,0.0443]
[1763609454679,0.08200667,92520.0,92519.0,0.15468423]
[1763609454883,0.08200667,92520.0,92519.0,0.04649803]
[1763609456487,0.08200667,92520.0,92519.0,0.04749803]
[1763609457086,0.08400667,92520.0,92519.0,0.04649803]
[1763609457387,0.04419,92503.0,92502.0,0.04446223]
[1763609457586,0.04419,92503.0,92502.0,0.15486636]
[1763609457988,0.04419,92503.0,92502.0,0.00236026]
[1763609458190,0.06932511,92503.0,92502.0,0.00236026]
[1763609459489,0.07032511,92503.0,92502.0,0.00336026]
[1763609459893,0.07032511,92503.0,92502.0,0.00236026]
[1763609460086,0.06932511,92503.0,92502.0,0.00336026]
[1763609460490,0.06932511,92503.0,92502.0,0.00236026]
[1763609460693,0.43012511,92503.0,92502.0,0.00436026]
[1763609461693,0.43012511,92503.0,92502.0,0.05066026]
[1763609462390,0.40499,92503.0,92502.0,0.05066026]
[1763609463090,0.40499,92503.0,92502.0,0.04666026]
[1763609463393,0.40699,92503.0,92502.0,0.04866026]
[1763609463588,0.40699,92503.0,92502.0,0.05044026]
[1763609463796,0.40899,92503.0,92502.0,0.04844026]
[1763609465994,0.5171949,92503.0,92502.0,0.04844026]
[1763609466387,0.5131949,92503.0,92502.0,0.04844026]
[1763609466590,0.5171949,92503.0,92502.0,0.00236026]
[1763609466892,0.5171949,92503.0,92502.0,0.02339223]
[1763609467091,0.5171949,92503.0,92502.0,0.02559026]
[1763609467294,0.5171949,92503.0,92502.0,0.00236026]
[1763609467487,0.54164297,92503.0,92502.0,0.00236026]
[1763609469198,0.54164297,92503.0,92502.0,0.02559026]
[1763609469794,0.53964297,92503.0,92502.0,0.00236026]
[1763609469987,0.54164297,92503.0,92502.0,0.00236026]
[1763609472992,0.54164297,92503.0,92502.0,0.00016223]
[1763609474895,0.00246519,92503.0,92502.0,0.15664636]
[1763609475589,0.02447519,92503.0,92502.0,0.15664636]
[1763609476003,0.04765519,92503.0,92502.0,0.15664636]
[1763609476206,0.04865519,92503.0,92502.0,0.15664636]
[1763609476502,0.04665519,92503.0,92502.0,0.15664636]
[1763609476700,0.00246519,92503.0,92502.0,0.15664636]
[1763609476893,0.04765519,92503.0,92502.0,0.15664636]
[1763609477603,0.04719,92503.0,92502.0,0.15664636]
[1763609478098,0.1553949,92503.0,92502.0,0.00236026]
[1763609478294,0.5151949,92503.0,92502.0,0.00236026]
[1763609478694,0.5171949,92503.0,92502.0,0.00236026]
[1763609478900,0.002,92503.0,92502.0,0.04844026]
[1763609479205,0.003,92503.0,92502.0,0.04844026]
[1763609479611,0.002,92503.0,92502.0,0.04944026]
[1763609479819,0.02401,92503.0,92502.0,0.04944026]
[1763609480409,0.04719,92503.0,92502.0,0.04944026]
[1763609480607,0.05152803,92520.0,92519.0,0.04608]
[1763609480608,0.02201,92520.0,92519.0,0.04608]
[1763609480813,0.38281,92531.0,92530.0,0.04608]
[1763609481008,0.40599,92531.0,92530.0,0.15645143]
[1763609481314,0.04519,92531.0,92530.0,0.15645143]
[1763609481519,0.01348,92536.0,92535.0,0.1542475]
[1763609481520,0.03549,92536.0,92535.0,0.1542475]
[1763609481721,0.02201,92536.0,92535.0,0.15644553]
[1763609482016,0.05867,92544.0,92543.0,0.04608]
[1763609482222,0.05867,92544.0,92543.0,0.04827803]
[1763609483008,0.00016214,92545.0,92544.0,0.154237]
[1763609483211,0.00016214,92545.0,92544.0,0.15643503]
[1763609483407,0.04535214,92545.0,92544.0,0.00219803]
[1763609483819,0.04535214,92545.0,92544.0,0.02542803]
[1763609484016,0.04535214,92545.0,92544.0,0.00219803]
[1763609484413,0.04535214,92545.0,92544.0,0.04827803]
[1763609485018,0.04535214,92545.0,92544.0,0.05127803]
[1763609485722,0.04535214,92545.0,92544.0,0.02942803]
[1763609485922,0.04535214,92545.0,92544.0,0.03242803]
[1763609486221,0.00016214,92545.0,92544.0,0.41207803]
[1763609486419,0.00216214,92545.0,92544.0,0.51655803]
[1763609487818,0.00416214,92545.0,92544.0,0.51355803]
[1763609488319,0.05763,92565.0,92564.0,0.1534736]
[1763609488520,0.05763,92565.0,92564.0,0.15567163]
[1763609489125,0.00027008,92566.0,92565.0,0.04534]
[1763609489326,0.00027008,92566.0,92565.0,0.04753803]
[1763609489719,0.00027008,92566.0,92565.0,0.15568803]
[1763609490425,0.02311205,92574.0,92573.0,0.1534631]
[1763609490625,0.02311205,92574.0,92573.0,0.51646113]
[1763609490822,0.04431205,92574.0,92573.0,0.51646113]
[1763609491930,0.04431205,92574.0,92573.0,0.52146113]
[1763609492125,0.05727205,92574.0,92573.0,0.52146113]
[1763609493326,0.00016205,92574.0,92573.0,0.52146113]
[1763609493525,0.02163205,92574.0,92573.0,0.52146113]
[1763609493729,0.05730205,92574.0,92573.0,0.52146113]
[1763609494429,0.05730205,92574.0,92573.0,0.62594113]
[1763609496328,0.05730205,92574.0,92573.0,0.39034803]
[1763609496529,0.05730205,92574.0,92573.0,0.36799803]
[1763609497927,0.05730205,92574.0,92573.0,0.41176803]
[1763609498327,0.04434205,92574.0,92573.0,0.41176803]
[1763609498925,0.00016205,92574.0,92573.0,0.41176803]
[1763609500725,0.00016205,92574.0,92573.0,0.51620803]
[1763609502328,0.04434205,92574.0,92573.0,0.51620803]
[1763609502529,0.04434205,92574.0,92573.0,0.49461803]
[1763609502725,0.04434205,92574.0,92573.0,0.00719803]
[1763609503332,0.04434205,92574.0,92573.0,0.15909113]
[1763609505634,0.00016205,92574.0,92573.0,0.15909113]
[1763609507539,0.02434078,92574.0,92573.0,0.15909113]
[1763609508238,0.06852078,92574.0,92573.0,0.15909113]
[1763609508630,0.04581078,92574.0,92573.0,0.15909113]
[1763609508833,0.02434078,92574.0,92573.0,0.15909113]
[1763609509027,0.00016205,92574.0,92573.0,0.15909113]
[1763609509433,0.02437814,92574.0,92573.0,0.15909113]
[1763609510244,0.02837814,92574.0,92573.0,0.15409113]
[1763609512629,0.43851247,92595.0,92582.0,0.04377]
[1763609512630,0.03885803,92583.0,92582.0,0.04377]
[1763609512945,0.03885803,92585.0,92583.0,0.1518814]
[1763609513145,0.06032803,92585.0,92584.0,0.04596803]
[1763609513449,0.08303803,92585.0,92584.0,0.04596803]
[1763609514146,0.04418,92585.0,92584.0,0.04596803]
[1763609514341,0.04418,92585.0,92584.0,0.04896803]
[1763609515843,0.04418,92585.0,92584.0,0.05096803]
[1763609516444,0.08298931,92585.0,92584.0,0.05096803]
[1763609517638,0.04418,92585.0,92584.0,0.05096803]
[1763609518546,0.02147,92585.0,92584.0,0.05096803]
[1763609519144,0.04418,92585.0,92584.0,0.05096803]
[1763609519449,0.19109021,92593.0,92592.0,0.04377]
[1763609519649,0.08298931,92593.0,92592.0,0.04596803]
[1763609520245,0.02147,92593.0,92592.0,0.04596803]
[1763609520653,0.00010664,92594.0,92593.0,0.1518697]
[1763609520852,0.00010664,92594.0,92593.0,0.15406773]
[1763609521350,0.03880931,92604.0,92603.0,0.1582081]
[1763609521552,0.1210326,92617.0,92605.0,0.04377]
[1763609521553,0.39960931,92611.0,92605.0,0.04377]
[1763609521740,0.03880931,92615.0,92605.0,0.04596803]
[1763609521942,0.04418,92615.0,92614.0,0.1518452]
[1763609522246,0.02147,92615.0,92614.0,0.61920323]
[1763609522443,0.1651536,92624.0,92623.0,0.0435]
[1763609522636,0.1651536,92624.0,92623.0,0.00219803]
[1763609522848,0.1651536,92624.0,92623.0,0.04569803]
[1763609523648,0.1651536,92624.0,92623.0,0.00519803]
[1763609523840,0.1522041,92615.0,92614.0,0.002]
[1763609524046,0.1522146,92606.0,92605.0,0.00016205]
[1763609524246,0.1522146,92606.0,92605.0,0.00236008]
[1763609524639,0.17607442,92606.0,92605.0,0.00236008]
[1763609525545,0.17607442,92606.0,92605.0,0.00436008]
[1763609526447,0.06798982,92606.0,92605.0,0.05086008]
[1763609527056,0.06798982,92606.0,92605.0,0.04786008]
[1763609527242,0.06798982,92606.0,92605.0,0.05086008]
[1763609527442,0.17607442,92606.0,92605.0,0.05086008]
[1763609527647,0.17607442,92606.0,92605.0,0.04786008]
[1763609527848,0.17607442,92606.0,92605.0,0.15894588]
[1763609527849,0.06798982,92606.0,92605.0,0.15894588]
[1763609528350,0.06798982,92606.0,92605.0,0.15694588]
[1763609528550,0.06798982,92606.0,92605.0,0.15894588]
[1763609528752,0.06798982,92606.0,92605.0,0.00736008]
[1763609530458,0.06798982,92606.0,92605.0,0.05086008]
[1763609532751,0.04569982,92606.0,92605.0,0.05086008]
[1763609532950,0.17607442,92606.0,92605.0,0.11544578]
[1763609533153,0.17607442,92606.0,92605.0,0.00736008]
[1763609534154,0.06798982,92606.0,92605.0,0.00736008]
[1763609534360,0.06798982,92606.0,92605.0,0.02952008]
[1763609535157,0.17607442,92606.0,92605.0,0.02952008]
[1763609537751,0.17607442,92606.0,92605.0,0.00736008]
[1763609540057,0.17607442,92606.0,92605.0,0.05086008]
[1763609540559,0.06798982,92606.0,92605.0,0.05086008]
[1763609543358,0.02385982,92606.0,92605.0,0.05086008]
[1763609543555,0.02385982,92606.0,92605.0,0.41166008]
[1763609543861,0.05674,92617.0,92616.0,0.1515729]
[1763609544060,0.08064064,92617.0,92616.0,0.15377093]
[1763609544260,0.06803064,92617.0,92616.0,0.15377093]
[1763609544760,0.3608,92625.0,92616.0,0.15377093]
[1763609544761,0.40493,92625.0,92624.0,0.1515636]
[1763609545061,0.40493,92625.0,92624.0,0.51456163]
[1763609545062,0.06803074,92625.0,92624.0,0.51456163]
[1763609545358,0.04574074,92625.0,92624.0,0.51456163]
[1763609545558,0.05709,92631.0,92630.0,0.1515566]
[1763609545754,0.08098295,92631.0,92630.0,0.15375463]
[1763609546957,0.08098295,92631.0,92630.0,0.15575463]
[1763609547761,0.06802295,92631.0,92630.0,0.15675463]
[1763609548871,0.08190295,92631.0,92630.0,0.15675463]
[1763609550465,0.06802295,92631.0,92630.0,0.15675463]
[1763609550666,0.05715,92638.0,92637.0,0.1531984]
[1763609550860,0.05715,92638.0,92637.0,0.15539643]
[1763609550861,0.08084488,92638.0,92637.0,0.15539643]
[1763609551872,0.08084488,92638.0,92637.0,0.15639643]
[1763609552367,0.04454,92638.0,92637.0,0.15839643]
[1763609552570,0.0577,92638.0,92637.0,0.15839643]
[1763609553571,0.1657472,92638.0,92637.0,0.15839643]
[1763609554357,0.0577,92638.0,92637.0,0.15839643]
[1763609556863,0.0577,92638.0,92637.0,0.003]
[1763609557074,0.08136752,92638.0,92637.0,0.00519803]
[1763609557572,0.08136752,92638.0,92637.0,0.003]
[1763609558273,0.1510877,92629.0,92628.0,0.00016195]
[1763609558474,0.1511169,92604.0,92603.0,0.40694]
[1763609558772,0.1511169,92604.0,92603.0,0.40913803]
[1763609558773,0.04303,92604.0,92603.0,0.40913803]
[1763609559163,0.04303,92604.0,92603.0,0.38602803]
[1763609559359,0.06670502,92604.0,92603.0,0.00219803]
[1763609559563,0.04303,92595.0,92594.0,0.49958963]
[1763609559765,0.04303,92595.0,92594.0,0.40929998]
[1763609560161,0.04303,92595.0,92594.0,0.36315998]
[1763609560474,0.04303,92595.0,92594.0,0.04849998]
[1763609560475,0.06670697,92595.0,92594.0,0.04849998]
[1763609560864,0.06870697,92595.0,92594.0,0.04849998]
[1763609561267,0.06870697,92595.0,92594.0,0.00016195]
[1763609561465,0.1511356,92588.0,92578.0,0.3608]
[1763609561669,0.17481285,92588.0,92578.0,0.3608]
[1763609562068,0.17481285,92588.0,92582.0,0.1081124]
[1763609562671,0.17681285,92588.0,92585.0,0.1081086]
[1763609562980,0.06970725,92588.0,92587.0,0.02531833]
[1763609563477,0.06970725,92588.0,92587.0,0.04842833]
[1763609563778,0.004,92588.0,92587.0,0.04842833]
[1763609564266,0.04703,92588.0,92587.0,0.04842833]
[1763609564468,0.04503,92588.0,92587.0,0.04842833]
[1763609564775,0.04703,92588.0,92587.0,0.04842833]
[1763609564965,0.04503,92588.0,92587.0,0.04842833]
[1763609565165,0.04703,92588.0,92587.0,0.04842833]
[1763609565583,0.04503,92588.0,92587.0,0.04842833]
[1763609565876,0.04703,92588.0,92587.0,0.04842833]
[1763609566068,0.04503,92588.0,92587.0,0.04842833]
[1763609566375,0.04703,92588.0,92587.0,0.00228833]
[1763609567679,0.1551356,92588.0,92587.0,0.00228833]
[1763609567874,0.1531356,92588.0,92587.0,0.00228833]
[1763609568075,0.1551356,92588.0,92587.0,0.00228833]
[1763609568272,0.1531356,92588.0,92587.0,9.03e-05]
[1763609568472,0.1511461,92579.0,92578.0,0.00016195]
[1763609569576,0.04303,92579.0,92578.0,0.00016195]
[1763609569876,0.0431203,92579.0,92578.0,0.04849998]
[1763609570074,0.0471203,92579.0,92578.0,0.04849998]
[1763609576376,0.0471203,92579.0,92578.0,0.00235998]
[1763609577482,0.0471203,92579.0,92578.0,0.00016195]
[1763609577684,0.1511566,92570.0,92569.0,0.1081277]
[1763609578182,0.05619,92568.0,92567.0,0.3608]
[1763609578482,0.1511601,92567.0,92566.0,0.00027008]
[1763609578878,0.04303,92567.0,92566.0,0.04860811]
[1763609579576,0.04303,92567.0,92566.0,0.40940811]
[1763609580372,0.04403,92567.0,92566.0,0.40940811]
[1763609580888,0.04603,92567.0,92566.0,0.40940811]
[1763609581985,0.003,92567.0,92566.0,0.40940811]
[1763609582286,0.02493,92567.0,92566.0,0.40940811]
[1763609582483,0.04759,92567.0,92566.0,0.36326811]
[1763609582682,0.04759,92567.0,92566.0,0.00246811]
[1763609583382,0.04759,92567.0,92566.0,0.00027008]
[1763609583790,0.1526506,92558.0,92557.0,0.36096204]
[1763609583978,0.1527409,92558.0,92557.0,0.36096204]
[1763609584183,0.1527409,92558.0,92557.0,0.38543007]
[1763609584383,0.1527409,92558.0,92557.0,0.36316007]
[1763609585089,0.1537409,92558.0,92557.0,0.36316007]
[1763609585682,0.1547409,92558.0,92557.0,0.36316007]
[1763609586593,0.1081652,92537.0,92536.0,0.05617]
[1763609586892,0.08228783,92537.0,92536.0,0.03503]
[1763609587079,0.1081665,92536.0,92532.0,0.04349687]
[1763609587279,9.03e-05,92537.0,92536.0,0.05617]
[1763609587476,9.03e-05,92537.0,92536.0,0.05836803]
[1763609587686,9.03e-05,92537.0,92536.0,0.16653433]
[1763609587886,0.1092555,92537.0,92536.0,0.05836803]
[1763609588797,0.1102555,92537.0,92536.0,0.01495803]
[1763609589095,0.1081698,92533.0,92532.0,8.687e-05]
[1763609589293,0.4689698,92533.0,92532.0,8.687e-05]
[1763609589793,0.1081757,92528.0,92527.0,0.00016204]
[1763609589994,0.1081757,92528.0,92503.0,0.3608]
[1763609590188,0.1081932,92513.0,92504.0,0.1082028]
[1763609590387,0.1081932,92513.0,92503.0,0.3608]
[1763609590388,0.3608,92516.0,92512.0,0.033]
[1763609590588,0.3608,92516.0,92515.0,0.04341]
[1763609590788,0.36093329,92516.0,92515.0,0.04560803]
[1763609591598,0.36093329,92516.0,92515.0,0.04860803]
[1763609591792,0.00013329,92516.0,92515.0,0.04860803]
[1763609593493,0.00016214,92525.0,92524.0,0.1515904]
[1763609593798,0.00016214,92525.0,92524.0,0.15378843]
[1763609594792,0.00020602,92525.0,92524.0,0.15678843]
[1763609596301,0.00020602,92525.0,92524.0,0.15878843]
[1763609599488,0.00020602,92525.0,92524.0,0.05060803]
[1763609599798,0.46918522,92525.0,92524.0,0.005]
[1763609600200,0.46918522,92525.0,92524.0,0.05060803]
[1763609602505,0.46918522,92525.0,92524.0,0.15878843]
[1763609603301,0.36100602,92525.0,92524.0,0.15878843]
[1763609603506,0.00020602,92525.0,92524.0,0.15878843]
[1763609605505,0.00020602,92525.0,92524.0,0.05060803]
[1763609614813,0.3608,92536.0,92535.0,0.1535375]
[1763609615013,0.38468925,92536.0,92535.0,0.04756803]
[1763609615918,0.38468925,92536.0,92535.0,0.05056803]
[1763609616120,0.02388925,92536.0,92535.0,0.05056803]
[1763609617218,0.36096214,92545.0,92544.0,0.05898]
[1763609617219,0.00016214,92545.0,92544.0,0.05898]
[1763609617422,0.00016214,92545.0,92544.0,0.06117803]
[1763609618325,0.00216214,92545.0,92544.0,0.06117803]
[1763609619330,0.00416214,92545.0,92544.0,0.06117803]
[1763609622624,0.00416214,92545.0,92544.0,0.16933503]
[1763609623821,0.3608,92556.0,92555.0,0.1535141]
[1763609624026,0.3608,92556.0,92555.0,0.15571213]
[1763609624935,0.3608,92556.0,92555.0,0.15771213]
[1763609625131,0.3608,92556.0,92555.0,0.16071213]
[1763609625526,0.3608,92564.0,92563.0,0.1081348]
[1763609625734,0.3608,92564.0,92563.0,0.15570283]
[1763609626423,0.00016214,92565.0,92564.0,0.04537]
[1763609626633,0.00016214,92565.0,92564.0,0.04756803]
[1763609627541,0.00016214,92565.0,92564.0,0.04956803]
[1763609628833,0.04402214,92565.0,92564.0,0.05256803]
[1763609631333,0.02237214,92565.0,92564.0,0.05256803]
[1763609632042,0.04402214,92565.0,92564.0,0.05256803]
[1763609633832,0.04402214,92565.0,92564.0,0.16070163]
[1763609634036,0.15215454,92565.0,92564.0,0.16070163]
[1763609634442,0.13050454,92565.0,92564.0,0.05256803]
[1763609634634,0.04402214,92565.0,92564.0,0.05256803]
[1763609637239,0.06776755,92565.0,92564.0,0.05256803]
[1763609641250,0.39954594,92576.0,92564.0,0.05256803]
[1763609641251,0.3608,92576.0,92575.0,0.1081208]
[1763609641547,0.38301,92576.0,92575.0,0.15568883]
[1763609641734,0.3608,92586.0,92585.0,0.1534791]
[1763609641938,0.40497,92586.0,92585.0,0.04756803]
[1763609642133,0.40497,92586.0,92585.0,0.15567713]
[1763609643047,0.40697,92586.0,92585.0,0.15567713]
[1763609643246,0.40897,92586.0,92585.0,0.15567713]
[1763609644243,0.40897,92586.0,92585.0,0.04756803]
[1763609644440,0.40897,92586.0,92585.0,0.00319803]
[1763609644441,0.40697,92586.0,92585.0,0.00319803]
[1763609644746,0.40497,92586.0,92585.0,0.00319803]
[1763609645245,0.40497,92586.0,92585.0,0.02590803]
[1763609645448,0.40497,92586.0,92585.0,0.02490803]
[1763609645648,0.40497,92586.0,92585.0,0.05218803]
[1763609646039,0.40497,92586.0,92585.0,0.04918803]
[1763609646240,0.40497,92586.0,92585.0,0.05218803]
[1763609650654,0.38301,92586.0,92585.0,0.04918803]
[1763609650857,0.38301,92586.0,92585.0,0.05218803]
[1763609651047,0.40497,92586.0,92585.0,0.05218803]
[1763609651247,0.40497,92586.0,92585.0,0.04918803]
[1763609651447,0.40497,92586.0,92585.0,0.05218803]
[1763609651751,0.40497,92586.0,92585.0,0.05018803]
[1763609651959,0.40497,92586.0,92585.0,0.05218803]
[1763609652755,0.3608,92586.0,92585.0,0.05218803]
[1763609653361,0.38440671,92586.0,92585.0,0.05218803]
[1763609653852,0.40736671,92586.0,92585.0,0.05218803]
[1763609654058,0.42932671,92586.0,92585.0,0.05218803]
[1763609659258,0.1530384,92577.0,92576.0,0.00016205]
[1763609659465,0.1766473,92577.0,92576.0,0.00016205]
[1763609660356,0.1786473,92577.0,92576.0,0.00016205]
[1763609660663,0.1806473,92577.0,92576.0,0.04735008]
[1763609660864,0.0725289,92577.0,92576.0,0.04735008]
[1763609661350,0.0276089,92577.0,92576.0,0.04735008]
[1763609661862,0.004,92577.0,92576.0,0.04735008]
[1763609662460,0.00102191,92577.0,92576.0,0.04735008]
[1763609663958,0.00016205,92595.0,92594.0,0.1530886]
[1763609664164,0.00016205,92595.0,92594.0,0.04718803]
[1763609664165,0.04508205,92595.0,92594.0,0.04718803]
[1763609664465,0.06869199,92595.0,92594.0,0.04718803]
[1763609665160,0.06869199,92595.0,92594.0,0.04918803]
[1763609666059,0.06869199,92595.0,92594.0,0.05118803]
[1763609670462,0.02377199,92595.0,92594.0,0.05118803]
[1763609670666,0.00016205,92595.0,92594.0,0.1665438]
[1763609670973,0.00026996,92606.0,92605.0,0.1535357]
[1763609671260,0.00026996,92606.0,92605.0,0.15573373]
[1763609671467,0.02367722,92606.0,92605.0,0.15573373]
[1763609672069,0.02367722,92606.0,92605.0,0.15673373]
[1763609672967,0.02367722,92606.0,92605.0,0.26305373]
[1763609673366,0.00026996,92606.0,92605.0,0.62385373]
[1763609673566,0.00016147,92615.0,92614.0,0.1524452]
[1763609673871,0.02355531,92615.0,92614.0,0.15464323]
[1763609674264,0.00016147,92615.0,92614.0,0.15464323]
[1763609674865,0.00016147,92615.0,92614.0,0.51544323]
[1763609675170,0.00016147,92615.0,92614.0,0.51644323]
[1763609675466,0.40541,92632.0,92631.0,0.1524254]
[1763609675664,0.42877242,92632.0,92631.0,0.16861343]
[1763609676664,0.42877242,92632.0,92631.0,0.16961343]
[1763609677163,0.42877242,92632.0,92631.0,0.17161343]
[1763609677363,0.40741242,92632.0,92631.0,0.17161343]
[1763609677665,0.38414105,92632.0,92631.0,0.17161343]
[1763609677865,0.3608,92632.0,92631.0,0.17161343]
[1763609678369,0.3608,92632.0,92631.0,0.17061343]
[1763609678563,0.3608,92632.0,92631.0,0.17161343]
[1763609679971,0.4688452,92640.0,92639.0,0.1524161]
[1763609679972,0.40541,92640.0,92639.0,0.1524161]
[1763609680167,0.42873077,92640.0,92639.0,0.15461413]
[1763609680369,0.40541,92640.0,92639.0,0.15461413]
[1763609681070,0.3608,92640.0,92639.0,0.15461413]
[1763609681275,0.04487985,92646.0,92645.0,0.1663991]
[1763609681463,0.04487985,92646.0,92645.0,0.16859713]
[1763609681662,0.04487985,92646.0,92645.0,0.15460713]
[1763609682473,0.04487985,92646.0,92645.0,0.04656803]
[1763609682672,0.04487985,92646.0,92645.0,0.15660713]
[1763609682875,0.15291775,92646.0,92645.0,0.15660713]
[1763609683065,0.15291775,92646.0,92645.0,0.15760713]
[1763609683459,0.04487985,92646.0,92645.0,0.15760713]
[1763609683660,0.04487985,92646.0,92645.0,0.17159713]
[1763609684165,0.04487985,92646.0,92645.0,0.15760713]
[1763609685775,0.04487985,92646.0,92645.0,0.17159713]
[1763609686076,0.38405,92661.0,92660.0,0.1523916]
[1763609686267,0.3608,92661.0,92660.0,0.15458963]
[1763609686569,0.40541,92672.0,92671.0,0.1523788]
[1763609686772,0.40541,92672.0,92671.0,0.15457683]
[1763609688469,0.40541,92672.0,92671.0,0.15557683]
[1763609688776,0.40541,92672.0,92671.0,0.15757683]
[1763609689277,0.40541,92672.0,92671.0,0.04956803]
[1763609690374,0.40541,92672.0,92671.0,0.00519803]
[1763609690676,0.40541,92672.0,92671.0,0.04956803]
[1763609692568,0.3608,92672.0,92671.0,0.04956803]
[1763609692869,0.3608,92681.0,92680.0,0.1663583]
[1763609692870,0.40541,92681.0,92680.0,0.1663583]
[1763609693068,0.40541,92681.0,92680.0,0.16855633]
[1763609693375,0.04461,92681.0,92680.0,0.16855633]
[1763609694174,0.04461,92681.0,92680.0,0.16955633]
[1763609694774,0.04461,92681.0,92680.0,0.17055633]
[1763609697478,0.00026973,92686.0,92685.0,0.1523624]
[1763609697673,0.00026973,92686.0,92685.0,0.15456043]
[1763609697874,0.3608,92692.0,92691.0,0.1523555]
[1763609698074,0.3608,92692.0,92691.0,0.25879353]
[1763609698282,0.40541,92701.0,92700.0,0.152345]
[1763609698579,0.40541,92701.0,92700.0,0.15454303]
[1763609698977,0.5133838,92701.0,92700.0,0.04656803]
[1763609699579,0.5133838,92701.0,92700.0,0.04856803]
[1763609700379,0.40541,92701.0,92700.0,0.04856803]
[1763609700585,0.40541,92701.0,92700.0,0.04956803]
[1763609701282,0.3608,92701.0,92700.0,0.04956803]
[1763609701980,0.04461,92711.0,92710.0,0.1509033]
[1763609702278,0.40556,92720.0,92719.0,0.0424]
[1763609702588,0.40556,92720.0,92719.0,0.15255093]
[1763609703178,0.04476,92720.0,92719.0,0.04459803]
[1763609703973,0.04476,92720.0,92719.0,0.00319803]
[1763609704178,0.40556,92720.0,92719.0,0.00319803]
[1763609704579,0.40556,92720.0,92719.0,0.04559803]
[1763609704778,0.40556,92720.0,92719.0,0.04659803]
[1763609705375,0.41837,92720.0,92719.0,0.00419803]
[1763609705684,0.1527222,92711.0,92710.0,0.00016178]
[1763609705987,0.5135222,92711.0,92710.0,0.00235981]
[1763609706677,0.40556,92711.0,92710.0,0.04475981]
[1763609706884,0.40556,92711.0,92710.0,0.04575981]
[1763609707279,0.40556,92711.0,92710.0,0.04775981]
[1763609707680,0.3608,92720.0,92719.0,0.1503529]
[1763609707681,0.40556,92720.0,92719.0,0.1503529]
[1763609707874,0.40556,92720.0,92719.0,0.15255093]
[1763609708483,0.1527117,92720.0,92719.0,0.04459803]
[1763609708693,0.1527117,92720.0,92719.0,0.00219803]
[1763609708989,0.1527117,92720.0,92719.0,0.00319803]
[1763609709184,0.1655217,92720.0,92719.0,0.00419803]
[1763609709787,0.1079505,92722.0,92721.0,0.0424]